bitfinex-derivatives/quotes_BTCF0:USTF0_20250213
["timestamp","ask_amount","ask_price","bid_price","bid_amount"]
[1739450123000,0.19,96025.0,96024.0,0.2092509]
[1739450123200,0.193,96025.0,96024.0,0.2092509]
[1739450123597,0.195,96025.0,96024.0,0.2082509]
[1739450123792,0.192,96025.0,96024.0,0.2082509]
[1739450123997,0.193,96025.0,96024.0,0.2082509]
[1739450125000,0.191,96025.0,96024.0,0.2082509]
[1739450125302,0.192,96025.0,96024.0,0.2082509]
[1739450125603,0.191,96025.0,96024.0,0.2082509]
[1739450126100,0.192,96025.0,96024.0,0.2082509]
[1739450126402,0.194,96025.0,96024.0,0.2082509]
[1739450127991,0.192,96025.0,96024.0,0.2082509]
[1739450128207,0.193,96025.0,96024.0,0.2082509]
[1739450129197,0.191,96025.0,96024.0,0.2082509]
[1739450129398,0.192,96025.0,96024.0,0.2082509]
[1739450129991,0.00015619,96034.0,96020.0,0.3608]
[1739450130197,0.11015619,96034.0,96033.0,0.2082314]
[1739450132194,0.11015619,96034.0,96033.0,0.2102314]
[1739450132801,0.11015619,96034.0,96033.0,0.2112314]
[1739450133197,0.11015619,96034.0,96033.0,0.3827314]
[1739450133401,0.11015619,96034.0,96033.0,0.3817314]
[1739450133597,0.11015619,96034.0,96033.0,0.3837314]
[1739450133795,0.15579935,96043.0,96033.0,0.1755]
[1739450134093,0.15579935,96043.0,96042.0,0.5690118]
[1739450134399,0.01,96058.0,96057.0,0.2081793]
[1739450134599,0.19,96058.0,96057.0,0.2081793]
[1739450136395,0.196,96058.0,96057.0,0.2091793]
[1739450136689,0.203,96058.0,96057.0,0.2101793]
[1739450137303,0.2,96058.0,96057.0,0.2091793]
[1739450137496,0.2,96058.0,96057.0,0.2957793]
[1739450137904,0.196,96058.0,96057.0,0.2947793]
[1739450138803,0.24262467,96058.0,96057.0,0.2947793]
[1739450139104,0.24562467,96058.0,96057.0,0.2947793]
[1739450143407,0.195,96058.0,96057.0,0.2947793]
[1739450144292,0.195,96058.0,96057.0,0.2081793]
[1739450144508,0.4031772,96058.0,96057.0,0.2081793]
[1739450144812,0.195,96058.0,96057.0,0.2081793]
[1739450146802,0.193,96058.0,96057.0,0.2081793]
[1739450147402,0.193,96058.0,96057.0,0.5689793]
[1739450147700,0.00015619,96067.0,96066.0,0.2081598]
[1739450147900,0.20015619,96067.0,96066.0,0.5689598]
[1739450149402,0.20115619,96067.0,96066.0,0.5689598]
[1739450151204,0.20115619,96067.0,96066.0,0.58785182]
[1739450160620,0.20115619,96067.0,96066.0,0.5689598]
[1739450160809,0.2081679,96063.0,96057.0,0.36136]
[1739450161013,0.4281679,96063.0,96062.0,0.2081685]
[1739450161619,0.22,96063.0,96049.0,0.3608]
[1739450161809,0.22,96063.0,96056.0,0.2081813]
[1739450161810,0.0896,96062.0,96056.0,0.2081813]
[1739450162011,0.2081793,96057.0,96056.0,0.2081813]
[1739450162207,0.41763534,96057.0,96056.0,0.2081813]
[1739450162518,0.2081946,96052.0,96051.0,0.2081895]
[1739450162713,0.4081946,96052.0,96051.0,0.2081895]
[1739450163220,0.2,96052.0,96051.0,0.2081895]
[1739450164619,0.2,96052.0,96051.0,0.2942895]
[1739450165013,0.2,96052.0,96051.0,0.2922895]
[1739450165213,0.2,96052.0,96051.0,0.2942895]
[1739450165825,0.2,96052.0,96051.0,0.2962895]
[1739450166626,0.2,96052.0,96051.0,0.2121895]
[1739450173019,0.15573458,96058.0,96057.0,0.2081793]
[1739450173218,0.18695922,96065.0,96051.0,0.004]
[1739450173219,0.18695922,96065.0,96064.0,0.2081642]
[1739450173428,0.18695922,96065.0,96064.0,0.5689642]
[1739450174015,0.18695922,96065.0,96064.0,0.5865854]
[1739450174436,0.00848374,96065.0,96064.0,0.5865854]
[1739450174948,0.003,96065.0,96064.0,0.5865854]
[1739450175246,0.216,96065.0,96064.0,0.5865854]
[1739450183255,0.3608,96083.0,96071.0,0.0520372]
[1739450183452,0.4208,96083.0,96082.0,0.2081251]
[1739450183760,0.06,96083.0,96082.0,0.2081251]
[1739450184458,0.066,96083.0,96082.0,0.2081251]
[1739450184756,0.073,96083.0,96082.0,0.2091251]
[1739450185255,0.074,96083.0,96082.0,0.2101251]
[1739450186455,1e-08,96083.0,96082.0,0.22781576]
[1739450186651,0.0001559,96092.0,96091.0,0.2081057]
[1739450186853,0.1,96100.0,96099.0,0.2080883]
[1739450187048,0.25,96100.0,96099.0,0.5688883]
[1739450187764,0.25,96100.0,96099.0,0.58625068]
[1739450188457,0.251,96100.0,96099.0,0.58725068]
[1739450188664,0.251,96100.0,96099.0,0.58825068]
[1739450195158,0.251,96100.0,96099.0,0.38016238]
[1739450195664,0.251,96100.0,96099.0,0.58825068]
[1739450201768,0.101,96100.0,96099.0,0.58825068]
[1739450201965,0.18643909,96113.0,96112.0,0.2080601]
[1739450202166,0.39643909,96113.0,96112.0,0.5688601]
[1739450202874,0.39643909,96113.0,96103.0,0.12520847]
[1739450203075,0.39643909,96113.0,96112.0,0.2090601]
[1739450203276,0.39643909,96113.0,96112.0,0.2100601]
[1739450204078,0.39643909,96113.0,96112.0,0.2090601]
[1739450204679,0.60449709,96113.0,96112.0,0.2090601]
[1739450204868,0.60449709,96113.0,96112.0,0.2100601]
[1739450205068,0.46865023,96113.0,96112.0,0.2100601]
[1739450205669,0.26059223,96113.0,96112.0,0.2100601]
[1739450209074,0.46865033,96113.0,96112.0,0.2100601]
[1739450209275,0.4180581,96113.0,96112.0,0.2100601]
[1739450209972,0.4180581,96113.0,96112.0,0.2090601]
[1739450210280,0.4180581,96113.0,96112.0,0.2100601]
[1739450210872,0.21,96113.0,96108.0,0.3608]
[1739450211071,0.21,96113.0,96105.0,0.2080691]
[1739450211072,0.2080775,96106.0,96105.0,0.2080691]
[1739450211281,0.3980775,96106.0,96105.0,0.2080691]
[1739450211475,0.19,96106.0,96105.0,0.2080691]
[1739450212489,0.3980732,96106.0,96105.0,0.2080691]
[1739450213570,0.19,96106.0,96105.0,0.2080691]
[1739450215384,0.24059762,96106.0,96105.0,0.2080691]
[1739450216506,0.24059762,96106.0,96105.0,0.2100691]
[1739450216695,0.24059762,96106.0,96105.0,0.2120691]
[1739450217084,0.24059762,96106.0,96105.0,0.2110691]
[1739450217485,0.24059762,96106.0,96105.0,0.2100691]
[1739450218980,0.24059762,96106.0,96105.0,0.2110691]
[1739450219286,0.24059762,96106.0,96105.0,0.2130691]
[1739450219582,0.24059762,96106.0,96105.0,0.2110691]
[1739450219783,0.24059762,96106.0,96105.0,0.2130691]
[1739450220184,0.24059762,96106.0,96105.0,0.2120691]
[1739450220580,0.24059762,96106.0,96105.0,0.2110691]
[1739450222278,0.24059762,96106.0,96105.0,0.2100691]
[1739450222592,0.24059762,96106.0,96105.0,0.2120691]
[1739450222796,0.24059762,96106.0,96105.0,0.2100691]
[1739450223790,0.24059762,96106.0,96105.0,0.2120691]
[1739450225291,0.24059762,96106.0,96105.0,0.2080691]
[1739450225799,0.24059762,96106.0,96105.0,0.2090691]
[1739450228498,0.24059762,96106.0,96105.0,0.2080691]
[1739450228696,0.24059762,96106.0,96105.0,0.2100691]
[1739450229187,0.24059762,96106.0,96105.0,0.2110691]
[1739450229787,0.24059762,96106.0,96105.0,0.2090691]
[1739450230093,0.44867082,96106.0,96105.0,0.2090691]
[1739450230294,0.44867082,96106.0,96105.0,0.2080691]
[1739450232695,0.44867082,96106.0,96090.0,0.17707907]
[1739450232696,0.44867082,96106.0,96080.0,0.12505237]
[1739450232697,0.2081014,96094.0,96080.0,0.12505237]
[1739450232893,0.4281014,96094.0,96093.0,0.2081003]
[1739450233296,0.4281014,96094.0,96081.0,0.0871]
[1739450233297,0.052031,96083.0,96067.0,0.3608]
[1739450233497,0.052031,96083.0,96052.0,0.3608]
[1739450233498,0.21,96083.0,96064.0,0.1789]
[1739450233697,0.2081474,96072.0,96064.0,0.5397]
[1739450233901,0.4181474,96072.0,96064.0,0.5398561]
[1739450234399,0.21,96072.0,96070.0,0.2081499]
[1739450236293,0.21,96072.0,96070.0,0.2131499]
[1739450236493,0.21,96072.0,96071.0,0.208149]
[1739450238497,0.21,96072.0,96071.0,0.210149]
[1739450238702,0.21,96072.0,96071.0,0.212149]
[1739450240996,0.21,96072.0,96071.0,0.208149]
[1739450241197,0.21,96072.0,96071.0,0.212149]
[1739450241600,0.21,96072.0,96071.0,0.210149]
[1739450241797,0.21,96072.0,96071.0,0.212149]
[1739450242004,0.21,96072.0,96071.0,0.213149]
[1739450242902,0.00015581,96083.0,96082.0,0.2081252]
[1739450243103,0.19015581,96083.0,96082.0,0.2081252]
[1739450243898,0.19015581,96083.0,96082.0,0.22406287]
[1739450254723,0.19015581,96083.0,96082.0,0.58486287]
[1739450255907,0.19837852,96097.0,96082.0,0.37673767]
[1739450256113,0.31837852,96097.0,96096.0,0.2080949]
[1739450259818,0.31837852,96097.0,96096.0,0.22423436]
[1739450261008,0.31837852,96097.0,96096.0,0.01613946]
[1739450261217,0.31837852,96097.0,96090.0,0.3608]
[1739450261624,0.31837852,96097.0,96096.0,0.2080949]
[1739450262121,0.31837852,96097.0,96096.0,0.22413055]
[1739450262328,0.31837852,96097.0,96096.0,0.01603565]
[1739450262624,0.2081014,96093.0,96092.0,0.2081016]
[1739450262807,0.4181014,96093.0,96092.0,0.2081016]
[1739450263012,0.21,96093.0,96087.0,0.0001561]
[1739450263207,0.2081122,96088.0,96087.0,0.2082679]
[1739450263413,0.3981122,96088.0,96087.0,0.2082679]
[1739450264214,0.19,96088.0,96087.0,0.2082679]
[1739450264410,0.19,96088.0,96087.0,0.22457025]
[1739450269222,0.19,96088.0,96087.0,0.23057025]
[1739450269424,0.19,96088.0,96087.0,0.23457025]
[1739450270125,0.19,96088.0,96087.0,0.23157025]
[1739450271726,0.19,96088.0,96087.0,0.23057025]
[1739450272721,0.19,96088.0,96087.0,0.23257025]
[1739450272927,0.19,96088.0,96087.0,0.23457025]
[1739450273326,0.15563531,96099.0,96098.0,0.2080905]
[1739450273523,0.27563531,96099.0,96098.0,0.2080905]
[1739450274524,0.27563531,96099.0,96098.0,0.2090905]
[1739450274926,0.12,96099.0,96098.0,0.2090905]
[1739450275722,0.12,96099.0,96098.0,0.2110905]
[1739450275930,0.12,96099.0,96098.0,0.2100905]
[1739450276227,0.12,96099.0,96098.0,0.2130905]
[1739450276728,0.12,96099.0,96098.0,0.2100905]
[1739450276922,0.12,96099.0,96098.0,0.2110905]
[1739450278924,0.12,96099.0,96098.0,0.2160905]
[1739450279125,0.12,96099.0,96098.0,0.2220905]
[1739450279525,0.12,96099.0,96098.0,0.2200905]
[1739450279926,0.12,96099.0,96098.0,0.2180905]
[1739450281231,0.12,96099.0,96098.0,0.2130905]
[1739450281429,0.12,96099.0,96098.0,0.2180905]
[1739450282329,0.12,96099.0,96098.0,0.2170905]
[1739450282958,0.12,96099.0,96098.0,0.2130905]
[1739450283157,0.12,96099.0,96098.0,0.2190905]
[1739450283758,0.12,96099.0,96098.0,0.2130905]
[1739450284068,0.12,96099.0,96098.0,0.2190905]
[1739450286453,0.12,96099.0,96098.0,0.2180905]
[1739450286645,0.12,96099.0,96098.0,0.2120905]
[1739450286841,0.12,96099.0,96098.0,0.2160905]
[1739450287534,0.12,96099.0,96098.0,0.2120905]
[1739450287835,0.12,96099.0,96098.0,0.2170905]
[1739450289028,0.12,96099.0,96098.0,0.2120905]
[1739450289237,0.12,96099.0,96098.0,0.2170905]
[1739450289741,0.3280884,96099.0,96098.0,0.2160905]
[1739450290046,0.3280884,96099.0,96098.0,0.2180905]
[1739450290940,0.3280884,96099.0,96098.0,0.2120905]
[1739450292038,0.3280884,96099.0,96098.0,0.2090905]
[1739450295751,0.12,96099.0,96098.0,0.2090905]
[1739450297246,0.07920607,96100.0,96099.0,0.2080884]
[1739450297449,0.29920607,96100.0,96099.0,0.2080884]
[1739450298959,0.22,96100.0,96099.0,0.2080884]
[1739450300759,0.4280862,96100.0,96099.0,0.2080884]
[1739450302851,0.4280862,96100.0,96087.0,0.01645845]
[1739450303159,0.2081122,96090.0,96089.0,0.2081049]
[1739450303354,0.2081122,96088.0,96087.0,0.01645845]
[1739450303562,0.4081122,96088.0,96087.0,0.01645845]
[1739450303868,0.42332563,96088.0,96087.0,0.01645845]
[1739450304066,0.4081122,96088.0,96087.0,0.02145845]
[1739450305060,0.4081122,96088.0,96087.0,0.02545845]
[1739450305956,0.4081122,96088.0,96087.0,0.0091561]
[1739450306164,0.42282946,96088.0,96087.0,0.0091561]
[1739450309663,0.47344055,96088.0,96087.0,0.0091561]
[1739450310264,0.2081317,96079.0,96078.0,0.2096945]
[1739450310464,0.4081317,96079.0,96078.0,0.2096945]
[1739450311761,0.4081317,96079.0,96078.0,0.2236945]
[1739450312171,0.2,96079.0,96078.0,0.2236945]
[1739450313077,0.4081317,96079.0,96078.0,0.2236945]
[1739450314677,0.2,96079.0,96078.0,0.2236945]
[1739450321680,0.2,96079.0,96078.0,0.014]
[1739450321681,0.4081317,96079.0,96078.0,0.014]
[1739450322984,0.42277273,96079.0,96078.0,0.014]
[1739450323981,0.2081512,96070.0,96069.0,0.0001561]
[1739450324283,0.4381512,96070.0,96069.0,0.0001561]
[1739450325277,0.4381512,96070.0,96069.0,0.0051561]
[1739450325484,0.4381512,96070.0,96069.0,0.0091561]
[1739450329677,0.4381512,96070.0,96069.0,0.2173094]
[1739450330481,0.48877466,96070.0,96069.0,0.2173094]
[1739450330888,0.48877466,96070.0,96069.0,0.23186304]
[1739450331777,0.28062346,96070.0,96069.0,0.23186304]
[1739450332680,0.28062346,96070.0,96069.0,0.41836304]
[1739450334287,0.23,96070.0,96069.0,0.41836304]
[1739450342294,0.20263686,96070.0,96069.0,0.41836304]
[1739450353693,0.15569169,96079.0,96078.0,0.2081338]
[1739450353890,0.17569169,96079.0,96078.0,0.5689338]
[1739450355195,0.17569169,96079.0,96078.0,0.5699338]
[1739450355386,0.02,96079.0,96078.0,0.5699338]
[1739450368809,0.15569169,96083.0,96082.0,0.2081252]
[1739450369102,0.16569169,96083.0,96082.0,0.2081252]
[1739450369308,0.5801191,96113.0,96079.0,0.3608]
[1739450369495,0.2047,96105.0,96104.0,0.5688775]
[1739450370305,0.2047,96105.0,96104.0,0.58268834]
[1739450370612,0.4127754,96105.0,96104.0,0.37461084]
[1739450371904,0.4197754,96105.0,96104.0,0.37561084]
[1739450372312,0.4197754,96105.0,96104.0,0.58368834]
[1739450372499,0.4267754,96105.0,96104.0,0.58468834]
[1739450372703,0.2187,96105.0,96104.0,0.58468834]
[1739450374914,0.4267754,96105.0,96104.0,0.5708775]
[1739450375111,0.7875754,96105.0,96104.0,0.002]
[1739450375704,0.80154827,96105.0,96104.0,0.002]
[1739450377512,0.7875754,96105.0,96104.0,0.002]
[1739450377708,0.7805754,96105.0,96104.0,0.2110775]
[1739450377909,0.7735754,96105.0,96104.0,0.2120775]
[1739450378504,0.7735754,96105.0,96104.0,0.2100775]
[1739450378706,0.7795754,96105.0,96104.0,0.2090775]
[1739450379111,0.7845754,96105.0,96104.0,0.2090775]
[1739450380613,0.98759311,96105.0,96104.0,0.2090775]
[1739450381318,0.98759311,96105.0,96104.0,0.001]
[1739450384313,0.77951771,96105.0,96090.0,0.12482686]
[1739450384612,0.2080909,96098.0,96097.0,0.208086]
[1739450384814,0.4180909,96098.0,96097.0,0.208086]
[1739450385213,0.4180909,96098.0,96097.0,0.2223876]
[1739450385605,0.21,96098.0,96088.0,0.3609561]
[1739450385821,0.21,96098.0,96092.0,0.2081014]
[1739450385822,0.2081078,96093.0,96092.0,0.2081014]
[1739450386026,0.4281078,96093.0,96092.0,0.2081014]
[1739450387912,0.4311078,96093.0,96092.0,0.2081014]
[1739450394718,0.20811,96089.0,96088.0,0.0001561]
[1739450394923,0.41811,96089.0,96088.0,0.0001561]
[1739450397820,0.41811,96089.0,96088.0,0.2082683]
[1739450401219,0.21,96089.0,96088.0,0.2082683]
[1739450401918,0.41811,96089.0,96088.0,0.2082683]
[1739450405121,0.21,96089.0,96088.0,0.2082683]
[1739450408018,0.1559217,96092.0,96091.0,0.2081057]
[1739450409338,0.1569217,96092.0,96091.0,0.2081057]
[1739450411331,0.001,96092.0,96091.0,0.2081057]
[1739450411925,0.231,96092.0,96091.0,0.2081057]
[1739450415232,0.231,96092.0,96089.0,0.0966]
[1739450415534,0.2081067,96091.0,96090.0,0.1864136]
[1739450415728,0.4181067,96091.0,96090.0,0.1864136]
[1739450418229,0.4191067,96091.0,96090.0,0.1864136]
[1739450419636,0.2081099,96090.0,96088.0,0.0001561]
[1739450419939,0.3981099,96090.0,96088.0,0.0001561]
[1739450420835,0.3981099,96090.0,96088.0,0.2082677]
[1739450423327,0.3981099,96090.0,96088.0,0.0001561]
[1739450425441,0.19,96090.0,96088.0,0.0001561]
[1739450425625,0.20811,96089.0,96088.0,0.0001561]
[1739450425831,0.42811,96089.0,96088.0,0.0001561]
[1739450426941,0.42811,96089.0,96088.0,0.2082683]
[1739450428838,0.42811,96089.0,96088.0,0.22138265]
[1739450432237,0.42811,96089.0,96088.0,0.2082683]
[1739450432835,0.22,96089.0,96088.0,0.2082683]
[1739450433636,0.42811,96089.0,96088.0,0.2082683]
[1739450434449,0.42811,96089.0,96088.0,0.22124336]
[1739450434832,0.42811,96089.0,96088.0,0.2082683]
[1739450436541,0.42811,96089.0,96088.0,0.22168295]
[1739450436744,0.42811,96089.0,96088.0,0.2082683]
[1739450440848,0.47871806,96089.0,96088.0,0.2082683]
[1739450441750,0.47871806,96089.0,96083.0,0.01339475]
[1739450441947,0.47871806,96089.0,96088.0,0.2081122]
[1739450442546,0.27060806,96089.0,96088.0,0.2081122]
[1739450443654,0.47871806,96089.0,96088.0,0.2081122]
[1739450447560,0.42811,96089.0,96088.0,0.2081122]
[1739450449255,0.22,96089.0,96088.0,0.2081122]
[1739450456967,0.02202072,96089.0,96088.0,0.2081122]
[1739450463564,0.2183,96103.0,96102.0,0.2080815]
[1739450463771,0.4483,96103.0,96102.0,0.2080815]
[1739450464376,0.4483,96103.0,96102.0,0.22110122]
[1739450464871,0.4583,96103.0,96102.0,0.22210122]
[1739450465078,0.24,96103.0,96102.0,0.22210122]
[1739450466275,0.04951328,96103.0,96102.0,0.22210122]
[1739450468471,0.04551328,96103.0,96102.0,0.22510122]
[1739450468674,0.03951328,96103.0,96102.0,0.22710122]
[1739450469372,0.03951328,96103.0,96102.0,0.22410122]
[1739450469583,0.03951328,96103.0,96102.0,0.22610122]
[1739450471666,0.03951328,96103.0,96102.0,0.22110122]
[1739450471868,0.03951328,96103.0,96102.0,0.22610122]
[1739450474491,0.03951328,96103.0,96102.0,0.22310122]
[1739450474696,0.03951328,96103.0,96102.0,0.22610122]
[1739450475198,0.03951328,96103.0,96102.0,0.22110122]
[1739450475497,0.03951328,96103.0,96102.0,0.22610122]
[1739450477981,0.03951328,96103.0,96102.0,0.22310122]
[1739450478186,0.03951328,96103.0,96102.0,0.22610122]
[1739450478388,0.03951328,96103.0,96102.0,0.22410122]
[1739450478596,0.03951328,96103.0,96102.0,0.22710122]
[1739450481789,0.03951328,96103.0,96102.0,0.24336593]
[1739450484903,0.03951328,96103.0,96102.0,0.24336591]
[1739450487194,1e-08,96103.0,96102.0,0.24336591]
[1739450487399,0.0001561,96107.0,96106.0,0.2080729]
[1739450487703,0.0001561,96107.0,96106.0,0.58513759]
[1739450487704,0.0701561,96107.0,96106.0,0.58513759]
[1739450488799,0.0701561,96107.0,96106.0,0.58713759]
[1739450488991,0.0701561,96107.0,96106.0,0.58713596]
[1739450489499,0.0701561,96107.0,96106.0,0.58813596]
[1739450494504,0.1,96122.0,96121.0,0.2080404]
[1739450494710,0.21,96122.0,96121.0,0.22430346]
[1739450495809,0.215,96122.0,96121.0,0.22430346]
[1739450496507,0.215,96122.0,96121.0,0.23711223]
[1739450496707,0.37105815,96122.0,96121.0,0.23711223]
[1739450496908,0.37405815,96122.0,96121.0,0.23711223]
[1739450501213,0.37405815,96122.0,96121.0,0.22084917]
[1739450501607,0.218,96122.0,96121.0,0.22084917]
[1739450503211,0.218,96122.0,96121.0,0.23711174]
[1739450505312,0.218,96122.0,96121.0,0.23711199]
[1739450505516,0.4260382,96122.0,96121.0,0.01626282]
[1739450505904,0.7868382,96122.0,96121.0,0.01626282]
[1739450507104,0.2080577,96113.0,96112.0,0.0001561]
[1739450507305,0.2080577,96113.0,96112.0,0.01642075]
[1739450507306,0.4080577,96113.0,96112.0,0.01642075]
[1739450508521,0.4967577,96113.0,96112.0,0.01642075]
[1739450508714,0.4967577,96113.0,96112.0,0.0001561]
[1739450509013,0.50947103,96113.0,96112.0,0.0001561]
[1739450509906,0.4967577,96113.0,96112.0,0.0001561]
[1739450510811,0.2887,96113.0,96112.0,0.0001561]
[1739450511512,0.4967577,96113.0,96112.0,0.0001561]
[1739450512919,0.73449092,96113.0,96112.0,0.0001561]
[1739450513108,0.73449092,96113.0,96112.0,0.208216]
[1739450513109,0.43873322,96113.0,96112.0,0.208216]
[1739450513312,0.43873322,96113.0,96112.0,0.22448051]
[1739450514114,0.50120001,96130.0,96112.0,0.22448051]
[1739450514115,0.50120001,96130.0,96127.0,0.2080274]
[1739450514310,0.11,96128.0,96113.0,0.0948]
[1739450514516,0.2080577,96113.0,96112.0,0.0001561]
[1739450514715,0.2580577,96113.0,96112.0,0.208216]
[1739450516010,0.2590577,96113.0,96112.0,0.208216]
[1739450518217,0.2590577,96113.0,96112.0,0.22448043]
[1739450518417,0.051,96113.0,96112.0,0.22448043]
[1739450518725,0.051,96113.0,96112.0,0.58528043]
[1739450519422,0.051,96113.0,96112.0,0.569016]
[1739450520325,0.051,96113.0,96112.0,0.58527903]
[1739450523233,0.2590577,96113.0,96112.0,0.3609561]
[1739450523722,0.2590577,96113.0,96112.0,0.0001561]
[1739450524029,0.6323356,96113.0,96112.0,0.0001561]
[1739450524219,0.6198577,96113.0,96112.0,0.0001561]
[1739450525727,0.78843934,96113.0,96112.0,0.0001561]
[1739450526026,0.77568482,96113.0,96112.0,0.0001561]
[1739450526824,0.77568482,96113.0,96112.0,0.01642172]
[1739450527826,0.78807388,96113.0,96112.0,0.01642172]
[1739450528629,0.77568482,96113.0,96112.0,0.01642172]
[1739450528820,0.77568482,96113.0,96112.0,0.01642167]
[1739450529624,0.2080902,96098.0,96097.0,0.1892]
[1739450529934,0.4180902,96098.0,96097.0,0.01626622]
[1739450530231,0.21,96098.0,96097.0,0.01626874]
[1739450530420,0.2081075,96090.0,96089.0,0.19926076]
[1739450530616,0.4081075,96090.0,96089.0,0.21552969]
[1739450531221,0.4081075,96090.0,96089.0,0.20268275]
[1739450531629,0.4081075,96090.0,96089.0,0.20868275]
[1739450531829,0.4091075,96090.0,96089.0,0.21468275]
[1739450533226,0.4091075,96090.0,96089.0,0.21468305]
[1739450533933,0.4091075,96090.0,96089.0,0.02826945]
[1739450535632,0.4091075,96090.0,96089.0,0.02226945]
[1739450535833,0.4091075,96090.0,96089.0,0.006]
[1739450536622,0.2081183,96085.0,96084.0,0.1897]
[1739450536832,0.7989183,96085.0,96084.0,0.20597034]
[1739450537225,0.7989183,96085.0,96084.0,0.0957]
[1739450537435,0.5908,96085.0,96080.0,0.0001561]
[1739450537620,0.208127,96081.0,96080.0,0.0001561]
[1739450537826,0.398127,96081.0,96080.0,0.0001561]
[1739450538835,0.398127,96081.0,96080.0,0.0031561]
[1739450539927,0.398127,96081.0,96080.0,0.0061561]
[1739450545438,0.398127,96081.0,96080.0,0.2142853]
[1739450546138,0.19,96081.0,96080.0,0.2142853]
[1739450546328,0.19,96081.0,96080.0,0.23055497]
[1739450547431,0.19,96081.0,96080.0,0.23055471]
[1739450556131,0.398127,96081.0,96080.0,0.23055442]
[1739450556334,0.398127,96081.0,96080.0,0.02242522]
[1739450557146,0.41024785,96081.0,96080.0,0.02242522]
[1739450557347,0.2081465,96072.0,96071.0,0.1864136]
[1739450557540,0.4081465,96072.0,96071.0,0.1864136]
[1739450558545,0.4081465,96072.0,96071.0,0.1894136]
[1739450559058,0.4081465,96072.0,96071.0,0.006]
[1739450561338,0.4081465,96072.0,96067.0,0.24848019]
[1739450561339,0.2081552,96068.0,96067.0,0.24848019]
[1739450561541,0.4381552,96068.0,96067.0,0.24848019]
[1739450562652,0.4381552,96068.0,96067.0,0.25248019]
[1739450563150,0.4381552,96068.0,96067.0,0.25648019]
[1739450563351,0.43494924,96068.0,96067.0,0.25648019]
[1739450563954,0.4471985,96068.0,96067.0,0.25648019]
[1739450564150,0.4471985,96068.0,96067.0,0.008]
[1739450571857,0.4471985,96068.0,96057.0,0.273]
[1739450571858,0.46054926,96068.0,96057.0,0.0919]
[1739450572049,0.5689768,96058.0,96057.0,0.0919]
[1739450572249,0.2081855,96054.0,96053.0,0.00156149]
[1739450572468,0.4481855,96054.0,96053.0,0.01783675]
[1739450572762,0.4481855,96054.0,96053.0,0.00156149]
[1739450573954,0.4491855,96054.0,96053.0,0.00756149]
[1739450574865,0.4491855,96054.0,96053.0,0.0238364]
[1739450575164,0.4501855,96054.0,96053.0,0.0258364]
[1739450578174,0.4501855,96054.0,96053.0,0.02583625]
[1739450579178,0.4481855,96054.0,96053.0,0.01983625]
[1739450579374,0.4481855,96054.0,96053.0,0.02283625]
[1739450580279,0.4481855,96054.0,96053.0,0.23102395]
[1739450581280,0.24,96054.0,96053.0,0.23102395]
[1739450581470,0.24,96054.0,96053.0,0.23102336]
[1739450583678,0.24,96054.0,96053.0,0.23102328]
[1739450587873,0.24,96054.0,96053.0,0.25706097]
[1739450588782,0.24,96054.0,96053.0,0.23102328]
[1739450592784,0.24,96054.0,96053.0,0.23102262]
[1739450599192,0.0557772,96054.0,96053.0,0.23102262]
[1739450602190,0.0557772,96054.0,96053.0,0.23102355]
[1739450603193,0.2639627,96054.0,96053.0,0.23102355]
[1739450604291,0.2639627,96054.0,96053.0,0.21474919]
[1739450604990,0.2639627,96054.0,96053.0,0.00656149]
[1739450605588,0.2639627,96054.0,96053.0,0.005]
[1739450622602,0.208205,96045.0,96044.0,0.0001561]
[1739450622795,0.789005,96045.0,96044.0,0.0001561]
[1739450623806,0.790005,96045.0,96044.0,0.0021561]
[1739450624910,0.5818,96045.0,96037.0,0.18689751]
[1739450625108,0.2082202,96038.0,96037.0,0.18689751]
[1739450625411,0.45001173,96038.0,96037.0,0.18689751]
[1739450625707,0.4382202,96038.0,96037.0,0.18689751]
[1739450627201,0.4392202,96038.0,96037.0,0.18689751]
[1739450627399,0.45130387,96038.0,96037.0,0.18689751]
[1739450627599,0.4402202,96038.0,96037.0,0.18689751]
[1739450627901,0.4402202,96038.0,96033.0,0.38493]
[1739450627902,0.2082289,96034.0,96033.0,0.38493]
[1739450628092,0.4382289,96034.0,96033.0,0.38493]
[1739450628296,0.4382289,96034.0,96033.0,0.1767]
[1739450628508,0.4382289,96034.0,96028.0,0.18705369]
[1739450628509,0.24178321,96034.0,96028.0,0.18705369]
[1739450628698,0.2082397,96029.0,96028.0,0.18705369]
[1739450628897,0.4082397,96029.0,96028.0,0.18705369]
[1739450629907,0.4092397,96029.0,96028.0,0.18805369]
[1739450631407,0.4102397,96029.0,96028.0,0.18805369]
[1739450632711,0.4102397,96029.0,96028.0,0.00115618]
[1739450634999,0.4102397,96029.0,96028.0,0.00015618]
[1739450635000,0.4092397,96029.0,96028.0,0.00015618]
[1739450636101,0.4082397,96029.0,96028.0,0.00015618]
[1739450639520,0.2,96029.0,96028.0,0.00015618]
[1739450639906,0.4082397,96029.0,96028.0,0.00015618]
[1739450648717,0.2,96029.0,96028.0,0.20839808]
[1739450649623,0.2183,96033.0,96032.0,0.2082332]
[1739450649820,0.4283,96033.0,96032.0,0.2082332]
[1739450651622,0.4283,96033.0,96032.0,0.22011164]
[1739450652328,0.21,96033.0,96032.0,0.22011164]
[1739450653521,0.2082354,96031.0,96030.0,0.091]
[1739450653722,0.4182354,96031.0,96030.0,0.091]
[1739450655528,0.4182354,96031.0,96030.0,0.10270532]
[1739450655728,0.4182354,96031.0,96030.0,0.31094282]
[1739450656426,0.4182354,96031.0,96030.0,0.091]
[1739450657129,0.4182354,96031.0,96029.0,0.0908]
[1739450657130,0.2082375,96030.0,96029.0,0.0908]
[1739450657428,0.4182375,96030.0,96029.0,0.0908]
[1739450659633,0.4182375,96030.0,96028.0,0.00015618]
[1739450659634,0.21,96030.0,96028.0,0.00015618]
[1739450659822,0.2082397,96029.0,96028.0,0.00015618]
[1739450660019,0.4382397,96029.0,96028.0,0.00015618]
[1739450664315,0.4382397,96029.0,96028.0,0.20839808]
[1739450666820,0.23,96029.0,96028.0,0.20839808]
[1739450683041,0.24149999,96029.0,96028.0,0.20839808]
[1739450684727,0.23,96029.0,96028.0,0.20839808]
[1739450686141,0.23,96029.0,96028.0,0.39529559]
[1739450690043,0.23,96029.0,96028.0,0.20839808]
[1739450700247,0.23,96029.0,96028.0,0.21039808]
[1739450706047,0.23,96029.0,96028.0,0.00215618]
[1739450708465,0.4382397,96029.0,96028.0,0.00215618]